bitfinex/quotes_SOLUSD_20260220
["timestamp","ask_amount","ask_price","bid_price","bid_amount"]
[1771612877053,4.27509767,85.157,85.12,11.7480486]
[1771612877362,4.27509767,85.157,85.12,23.12088851]
[1771612878054,4.27509767,85.157,85.12,27.41170865]
[1771612878564,11.74163701,85.167,85.131,4.29082014]
[1771612878974,4.27509767,85.159,85.121,4.29082014]
[1771612880859,11.37283991,85.16,85.121,4.29082014]
[1771612880860,4.27509767,85.157,85.122,11.74784427]
[1771612881652,4.27509767,85.157,85.123,4.29082014]
[1771612882155,4.27509767,85.157,85.111,16.04018273]
[1771612882358,11.37283991,85.12,85.063,4.29082014]
[1771612882560,4.27509767,85.119,85.068,4.29082014]
[1771612882756,4.27509767,85.109,85.068,4.29082014]
[1771612883068,4.27509767,85.119,85.08,11.37283991]
[1771612883372,4.27509767,85.119,85.09,11.37283991]
[1771612883568,29.367001,85.13,85.091,4.29082014]
[1771612883773,11.74687826,85.129,85.091,4.29082014]
[1771612884271,4.27509767,85.128,85.081,4.29082014]
[1771612884578,11.37283991,85.1,85.058,4.29082014]
[1771612884753,11.37283991,85.1,85.06,4.29082014]
[1771612884754,4.27509767,85.099,85.06,4.29082014]
[1771612885073,11.75115748,85.098,85.061,11.75626903]
[1771612885260,4.27509767,85.097,85.061,11.75626903]
[1771612885460,4.27509767,85.089,85.04,11.37283991]
[1771612885656,4.27509767,85.079,85.04,11.75904812]
[1771612885855,4.27509767,85.079,85.04,23.13188803]
[1771612886055,11.37283991,85.07,85.038,4.29082014]
[1771612886269,4.27509767,85.079,85.038,4.29082014]
[1771612886570,4.27509767,85.079,85.039,11.75931043]
[1771612886774,4.27509767,85.079,85.041,4.29082014]
[1771612886972,11.752823,85.086,85.05,11.37283991]
[1771612887270,11.752823,85.086,85.051,4.29082014]
[1771612888756,11.752823,85.086,85.06,11.37283991]
[1771612888956,11.7510194,85.099,85.061,4.29082014]
[1771612889156,4.27509767,85.098,85.061,4.29082014]
[1771612889372,4.27509767,85.098,85.06,11.37283991]
[1771612889373,4.27509767,85.098,85.055,4.29082014]
[1771612889553,4.27509767,85.089,85.055,4.29082014]
[1771612889756,4.27509767,85.089,85.047,11.7581654]
[1771612889757,4.27509767,85.089,85.051,4.29082014]
[1771612890186,4.27509767,85.089,85.04,15.66366005]
[1771612890480,4.27509767,85.079,85.042,4.29082014]
[1771612890773,4.27509767,85.079,85.041,41.15661856]
[1771612890774,4.27509767,85.089,85.06,11.37283991]
[1771612891271,4.27509767,85.087,85.042,4.29082014]
[1771612891572,11.37283991,85.08,85.042,4.29082014]
[1771612891767,11.75253854,85.088,85.043,4.29082014]
[1771612891957,11.75253854,85.088,85.05,15.66366005]
[1771612892150,4.27509767,85.089,85.05,15.66366005]
[1771612892350,11.75174575,85.094,85.061,4.29082014]
[1771612892575,4.27509767,85.122,85.081,4.29082014]
[1771612893269,11.74820407,85.12,85.09,23.12509354]
[1771612893463,4.27509767,85.122,85.09,23.12509354]
[1771612893677,11.74762614,85.124,85.091,4.29082014]
[1771612894452,11.74687826,85.129,85.092,11.75198608]
[1771612894861,11.37283991,85.13,85.093,4.29082014]
[1771612895181,4.27509767,85.139,85.092,45.42277143]
[1771612895377,4.27509767,85.139,85.092,41.13195129]
[1771612895567,4.27509767,85.139,85.093,4.29082014]
[1771612895970,4.27509767,85.129,85.088,11.75248208]
[1771612896269,15.64793758,85.12,85.084,11.7530461]
[1771612896475,4.27509767,85.119,85.084,11.7530461]
[1771612896779,4.27509767,85.117,85.084,11.7530461]
[1771612897776,4.05140326,85.109,85.072,11.75474084]
[1771612899077,15.80110423,85.109,85.072,16.24341481]
[1771612899380,15.80110423,85.109,85.073,4.48867397]
[1771612899574,11.7484758,85.118,85.081,4.48867397]
[1771612900161,4.05140326,85.117,85.081,4.48867397]
[1771612900976,4.05140326,85.115,85.082,11.75336733]
[1771612902685,4.05140326,85.115,85.083,4.48867397]
[1771612903281,4.05140326,85.113,85.073,4.48867397]
[1771612903491,4.05140326,85.109,85.074,11.75447257]
[1771612906890,4.05140326,85.099,85.06,11.37283991]
[1771612907585,4.05140326,85.099,85.051,4.48867397]
[1771612907772,4.05140326,85.099,85.06,11.37283991]
[1771612908174,11.74977675,85.108,85.071,4.48867397]
[1771612909087,4.05140326,85.12,85.09,11.37283991]
[1771612910687,4.05140326,85.119,85.072,11.75474891]
[1771612910888,4.05140326,85.119,85.073,4.48867397]
[1771612911072,4.05140326,85.117,85.08,11.37283991]
[1771612912476,4.05140326,85.115,85.08,11.37283991]
[1771612912884,4.05140326,85.115,85.075,16.24297453]
[1771612913484,4.05140326,85.109,85.075,4.48867397]
[1771612913684,4.05140326,85.109,85.071,11.75478708]
[1771612914580,4.05140326,85.107,85.072,4.48867397]
[1771612914777,4.05140326,85.107,85.08,11.37283991]
[1771612914978,46.96033573,85.179,85.1,15.86151388]
[1771612914979,4.05140326,85.139,85.1,15.86151388]
[1771612915399,4.05140326,85.139,85.11,11.37283991]
[1771612916081,4.05140326,85.149,85.12,11.37283991]
[1771612916277,4.05140326,85.149,85.111,4.48867397]
[1771612916488,4.05140326,85.157,85.122,11.74784427]
[1771612916694,4.05140326,85.157,85.12,11.37283991]
[1771612916900,4.05140326,85.157,85.118,11.74838113]
[1771612916901,4.05140326,85.149,85.111,4.48867397]
[1771612917104,4.05140326,85.149,85.114,11.74887386]
[1771612917483,4.05140326,85.181,85.141,4.48867397]
[1771612917687,0.1,85.2,85.16,11.37283991]
[1771612917688,4.05140326,85.196,85.16,11.37283991]
[1771612918386,4.05140326,85.189,85.15,11.37283991]
[1771612918692,4.05140326,85.187,85.151,11.74384329]
[1771612919388,4.05140326,85.179,85.145,11.74461313]
[1771612919588,4.05140326,85.179,85.142,4.48867397]
[1771612919983,4.05140326,85.179,85.15,11.37283991]
[1771612920589,4.05140326,85.188,85.16,11.37283991]
[1771612920787,4.05140326,85.188,85.152,11.74370537]
[1771612921202,4.05140326,85.199,85.17,11.37283991]
[1771612921406,0.1,85.2,85.181,4.48867397]
[1771612921707,46.92149177,85.249,85.181,4.48867397]
[1771612921708,4.05140326,85.217,85.181,4.48867397]
[1771612922404,4.05140326,85.227,85.191,4.48867397]
[1771612922613,15.78351951,85.237,85.2,11.37283991]
[1771612922803,15.78351951,85.237,85.202,4.48867397]
[1771612923191,4.05140326,85.236,85.202,4.48867397]
[1771612923395,11.47283991,85.24,85.221,4.48867397]
[1771612923396,0.1,85.24,85.221,4.48867397]
[1771612923805,11.72650547,85.277,85.231,4.48867397]
[1771612924007,4.05140326,85.282,85.251,4.48867397]
[1771612924209,16.50076887,85.284,85.261,4.48867397]
[1771612924815,29.30685704,85.305,85.11,8.40416909]
[1771612924816,11.37283991,85.27,85.214,3.69383402]
[1771612924997,4.05140326,85.319,85.141,140.0]
[1771612924998,4.05140326,85.239,85.191,4.48867397]
[1771612925197,11.37283991,85.24,85.201,4.48867397]
[1771612925407,11.37283991,85.25,85.211,4.48867397]
[1771612925611,0.53977876,85.27,85.241,4.48867397]
[1771612925914,4.05140326,85.279,85.241,4.48867397]
[1771612926093,11.33436737,85.27,85.241,4.48867397]
[1771612926296,4.05140326,85.279,85.241,4.48867397]
[1771612926596,11.33436737,85.27,85.241,4.48867397]
[1771612926798,4.24299795,85.269,85.23,15.8231434]
[1771612927007,4.24299795,85.269,85.232,4.48877603]
[1771612927008,15.97058945,85.269,85.232,4.48877603]
[1771612927998,11.33436737,85.26,85.232,4.48877603]
[1771612928201,11.7275915,85.269,85.21,11.73563902]
[1771612928202,11.33436737,85.24,85.21,11.73563902]
[1771612928516,4.08254647,85.239,85.202,4.12879569]
[1771612928817,4.08254647,85.237,85.203,15.86547162]
[1771612929012,4.08254647,85.237,85.203,11.73667593]
[1771612929211,4.08254647,85.237,85.204,4.12879569]
[1771612931116,11.73213196,85.236,85.203,11.73667593]
[1771612931415,4.08254647,85.237,85.203,15.86547162]
[1771612931625,11.33436737,85.25,85.211,4.12879569]
[1771612931924,4.08254647,85.267,85.231,4.12879569]
[1771612932495,11.72800412,85.266,85.231,4.12879569]
[1771612932696,11.33436737,85.26,85.231,4.12879569]
[1771612933001,4.08254647,85.258,85.222,4.12879569]
[1771612933614,4.08254647,85.249,85.215,11.73500362]
[1771612935240,11.73048048,85.248,85.211,4.12879569]
[1771612935422,11.73048048,85.248,85.212,11.73543632]
[1771612935720,11.73048048,85.248,85.212,15.86423201]
[1771612936226,4.08254647,85.239,85.2,11.73708311]
[1771612936519,4.08254647,85.259,85.221,4.12879569]
[1771612936906,41.18055004,85.286,85.231,4.12879569]
[1771612936907,4.08254647,85.269,85.231,4.12879569]
[1771612937218,11.33436737,85.26,85.232,11.73268256]
[1771612937418,11.72896702,85.259,85.232,11.73268256]
[1771612937730,15.8106844,85.266,85.232,11.73268256]
[1771612938023,11.72772904,85.268,85.233,4.12879569]
[1771612938199,11.33436737,85.26,85.233,4.12879569]
[1771612938521,4.08254647,85.259,85.225,11.73352264]
[1771612939324,4.08254647,85.259,85.222,4.12879569]
[1771612939325,15.81153314,85.259,85.222,4.12879569]
[1771612940416,4.08254647,85.259,85.222,4.12879569]
[1771612940723,11.7291046,85.258,85.222,4.12879569]
[1771612941609,11.7291046,85.258,85.224,4.12879569]
[1771612941810,15.81165107,85.258,85.224,4.12879569]
[1771612942921,4.08254647,85.239,85.2,15.46316306]
[1771612943122,4.08254647,85.229,85.192,4.12879569]
[1771612944625,4.08254647,85.219,85.185,11.73905743]
[1771612944823,0.14216157,85.246,85.172,4.12879569]
[1771612944824,4.08254647,85.209,85.172,4.12879569]
[1771612945122,4.08254647,85.199,85.161,4.12879569]
[1771612945709,11.33436737,85.18,85.148,4.12879569]
[1771612946025,11.33436737,85.18,85.152,11.74359209]
[1771612946226,11.33436737,85.18,85.148,4.12879569]
[1771612946409,11.33436737,85.18,85.14,11.33436737]
[1771612946410,4.08254647,85.179,85.141,4.12879569]
[1771612947117,11.74012068,85.178,85.142,15.87388037]
[1771612947424,15.41691384,85.17,85.142,11.74508468]
[1771612947742,11.33436737,85.16,85.133,4.12879569]
[1771612947905,11.33436737,85.16,85.126,11.74715944]
[1771612948112,15.41691384,85.15,85.123,11.74760063]
[1771612948609,15.41691384,85.15,85.12,4.32879569]
[1771612948814,0.14216157,85.176,85.12,0.2]
[1771612948815,11.33436737,85.14,85.12,0.2]
[1771612949014,4.08254647,85.138,85.12,0.2]
[1771612949414,15.41691384,85.13,85.097,15.88002843]
[1771612949610,4.08254647,85.129,85.097,15.88002843]
[1771612949825,4.08254647,85.119,85.092,11.75186796]
[1771612950132,11.33436737,85.1,85.059,11.75654545]
[1771612950308,4.08254647,85.122,85.061,4.12879569]
[1771612950509,11.33436737,85.13,85.091,4.12879569]
[1771612950823,15.41691384,85.13,85.091,4.12879569]
[1771612951025,11.74687826,85.129,85.092,11.75198608]
[1771612951212,11.74687826,85.129,85.093,4.12879569]
[1771612951736,15.41691384,85.11,85.072,11.75474891]
[1771612951907,15.41691384,85.11,85.071,4.12879569]
[1771612951908,4.08254647,85.109,85.071,15.88368278]
[1771612952108,4.08254647,85.109,85.08,11.33436737]
[1771612952428,4.08254647,85.133,85.091,4.12879569]
[1771612952634,4.08254647,85.129,85.091,4.12879569]
[1771612953130,15.82944243,85.129,85.099,11.75096216]
[1771612953325,15.82944243,85.129,85.091,4.12879569]
[1771612953326,11.74689596,85.129,85.091,4.12879569]
[1771612953530,4.08254647,85.119,85.081,15.88230117]
[1771612953734,4.08254647,85.129,85.091,4.12879569]
[1771612954344,4.08254647,85.154,85.12,11.33436737]
[1771612954628,15.41691384,85.15,85.111,4.12879569]
[1771612955018,4.08254647,85.149,85.111,4.12879569]
[1771612955420,15.82670855,85.149,85.112,11.74922455]
[1771612955820,4.08254647,85.139,85.102,4.12879569]
[1771612956417,4.08254647,85.149,85.111,4.12879569]
[1771612956822,4.08254647,85.148,85.111,4.12879569]
[1771612957523,4.29912827,85.139,85.101,4.38685077]
[1771612957838,4.29912827,85.139,85.103,11.75045287]
[1771612958023,4.29912827,85.139,85.101,4.38685077]
[1771612958215,4.29912827,85.139,85.101,16.137594]
[1771612958532,4.29912827,85.129,85.095,11.75148771]
[1771612958728,41.10538244,85.147,85.095,11.75148771]
[1771612958729,4.29912827,85.139,85.101,4.38685077]
[1771612959136,11.33436737,85.13,85.101,4.38685077]
[1771612959326,4.29912827,85.139,85.101,4.38685077]
[1771612959524,4.29912827,85.137,85.102,11.75060515]
[1771612961032,4.29912827,85.137,85.102,41.12711804]
[1771612961239,4.29912827,85.137,85.103,4.38685077]
[1771612961442,29.35763265,85.157,85.111,4.38685077]
[1771612961443,11.33436737,85.15,85.111,4.38685077]
[1771612961618,16.0432474,85.149,85.113,4.38685077]
[1771612961819,11.74411913,85.149,85.113,4.38685077]
[1771612962123,4.29912827,85.148,85.113,4.38685077]
[1771612962537,4.29912827,85.139,85.102,4.38685077]
[1771612963617,15.63349564,85.13,85.093,4.38685077]
[1771612963821,4.29912827,85.13,85.093,4.38685077]
[1771612964534,4.29912827,85.129,85.093,4.38685077]
[1771612966042,4.29912827,85.127,85.094,11.75170987]
[1771612967235,11.74502237,85.143,85.111,4.38685077]
[1771612967435,11.74440037,85.147,85.111,4.38685077]
[1771612967833,3.69383402,85.173,85.111,4.38685077]
[1771612968021,4.29912827,85.204,85.18,11.33436737]
[1771612968930,11.33436737,85.23,85.19,15.72121814]
[1771612969327,11.33436737,85.24,85.201,4.38685077]
[1771612969954,11.73171904,85.239,85.202,11.73681368]
[1771612970843,11.33436737,85.21,85.164,4.5]
[1771612971143,11.33436737,85.2,85.164,4.5]
[1771612971939,165.7,85.242,85.166,4.5]
[1771612972245,11.33436737,85.22,85.181,4.5]
[1771612972770,11.33436737,85.23,85.191,4.5]
[1771612974042,11.33436737,85.23,85.192,11.73819137]
[1771612974236,11.33436737,85.23,85.193,4.5]
[1771612974438,11.73309554,85.229,85.193,4.5]
[1771612974643,11.33436737,85.21,85.192,11.73819137]
[1771612974847,11.33436737,85.22,85.193,4.5]
[1771612975052,11.33436737,85.22,85.192,11.73819137]
[1771612975542,11.33436737,85.21,85.182,4.5]
[1771612975743,11.33436737,85.22,85.183,4.5]
[1771612976250,11.33436737,85.22,85.185,4.5]
[1771612976542,11.73309554,85.229,85.191,4.5]
[1771612976744,11.33436737,85.22,85.191,4.5]
[1771612976948,11.33436737,85.23,85.191,4.5]
[1771612977331,11.33436737,85.22,85.181,11.73970721]
[1771612977528,11.33436737,85.22,85.182,4.5]
[1771612978156,11.33436737,85.22,85.184,4.5]
[1771612978339,23.06876017,85.22,85.184,4.5]
[1771612978646,3.69383402,85.257,85.184,4.5]
[1771612978847,11.33436737,85.22,85.184,4.5]
[1771612979851,11.33436737,85.22,85.186,4.5]
[1771612980040,11.7322696,85.235,85.186,4.5]
[1771612980243,11.33436737,85.22,85.186,4.5]
[1771612981130,41.06294361,85.235,85.081,140.0]
[1771612981131,11.33436737,85.2,85.175,4.5]
[1771612981559,11.33436737,85.19,85.156,4.5]
[1771612981935,11.33436737,85.19,85.158,4.5]
[1771612982347,23.07286878,85.19,85.157,11.74301584]
[1771612982548,11.33436737,85.17,85.147,11.74427598]
[1771612982751,11.33436737,85.17,85.138,11.74560358]
[1771612982951,11.33436737,85.15,85.102,4.5]
[1771612983261,11.33436737,85.14,85.102,4.5]
[1771612983843,11.74549853,85.139,85.104,4.5]
[1771612984032,11.33436737,85.13,85.103,11.75046708]
[1771612984233,11.33436737,85.13,85.103,4.5]
[1771612984643,11.33436737,85.12,85.1,0.2]
[1771612984846,11.33436737,85.12,85.1,11.95074459]
[1771612985053,11.33436737,85.12,85.1,0.2]
[1771612985857,11.33436737,85.11,85.1,0.2]
[1771612986656,11.33436737,85.12,85.1,0.2]
[1771612987147,11.33436737,85.11,85.073,4.5]
[1771612987353,11.33436737,85.1,85.075,4.5]
[1771612987936,11.37768772,85.12,85.081,4.5]
[1771612988138,11.37768772,85.11,85.081,4.5]
[1771612989039,0.14216157,85.135,85.081,4.5]
[1771612989040,11.37768772,85.1,85.081,4.5]
[1771612989558,11.37768772,85.11,85.081,4.5]
[1771612990254,11.37768772,85.09,85.067,4.5]
[1771612990555,11.37768772,85.1,85.067,4.5]
[1771612990750,11.74784427,85.122,85.067,4.5]
[1771612990950,11.37768772,85.11,85.071,4.5]
[1771612992252,11.37768772,85.11,85.07,11.37768772]
[1771612992253,11.37768772,85.11,85.073,4.5]
[1771612993244,11.37768772,85.12,85.073,4.5]
[1771612993440,11.37768772,85.11,85.073,4.5]
[1771612994663,11.37768772,85.12,85.081,4.5]
[1771612994862,11.37768772,85.13,85.091,4.5]
[1771612995064,11.74687826,85.129,85.091,4.5]
[1771612995363,11.37768772,85.13,85.091,4.5]
[1771612995765,3.69383402,85.159,85.074,41.14065401]
[1771612995766,11.37768772,85.15,85.111,4.5]
[1771612996761,11.74352122,85.154,85.121,4.5]
[1771612996961,23.1203702,85.16,85.121,4.5]
[1771612997347,11.37768772,85.15,85.121,4.5]
[1771612999062,11.74411913,85.149,85.122,16.24784427]
[1771612999261,11.74411913,85.149,85.115,11.74869363]
[1771612999568,11.74411913,85.149,85.113,4.5]
[1771612999867,11.74411913,85.149,85.115,4.5]
[1771613000064,11.37768772,85.13,85.101,4.5]
[1771613000243,11.74411913,85.149,85.111,4.5]
[1771613001462,11.37768772,85.13,85.093,4.5]
[1771613001856,11.37768772,85.12,85.093,4.5]
[1771613002162,11.37768772,85.13,85.093,4.5]
[1771613002863,11.37768772,85.13,85.068,0.4]
[1771613002864,11.37768772,85.1,85.052,4.5]
[1771613003057,11.37768772,85.1,85.061,4.5]
[1771613003260,11.37768772,85.11,85.071,4.5]
[1771613003467,11.37768772,85.1,85.071,4.5]
[1771613003843,11.37768772,85.09,85.052,4.5]
[1771613004180,11.37768772,85.08,85.052,4.5]
[1771613004474,0.14216157,85.108,85.053,4.5]
[1771613004676,11.37768772,85.09,85.053,4.5]
[1771613005476,0.14216157,85.115,85.055,4.5]
[1771613005477,11.37768772,85.08,85.055,4.5]
[1771613005847,11.75240042,85.089,85.055,4.5]
[1771613006163,11.37768772,85.09,85.055,4.5]
[1771613006363,46.97416221,85.154,85.071,4.5]
[1771613006364,11.37768772,85.11,85.071,4.5]
[1771613006665,11.37768772,85.1,85.071,4.5]
[1771613006968,3.69383402,85.129,85.061,4.5]
[1771613007174,11.37768772,85.09,85.061,4.5]
[1771613007349,11.74963869,85.109,85.072,11.75474891]
[1771613007549,11.37768772,85.1,85.073,4.5]
[1771613008271,11.37768772,85.09,85.061,4.5]
[1771613008766,11.37768772,85.08,85.041,4.5]
[1771613009872,23.13133904,85.08,85.042,11.7588956]
[1771613010057,23.13133904,85.08,85.043,4.5]
[1771613010461,11.37768772,85.07,85.043,4.5]
[1771613010770,11.37768772,85.06,85.03,11.9604797]
[1771613010955,11.37768772,85.06,85.03,0.2]
[1771613011150,11.37768772,85.05,85.03,0.2]
[1771613012063,11.37768772,85.05,85.031,11.76041678]
[1771613012263,11.75702196,85.056,85.03,0.2]
[1771613012569,11.37768772,85.05,85.03,11.96051698]
[1771613012871,11.37768772,85.05,85.03,0.2]
[1771613013256,11.37768772,85.05,85.011,4.5]
[1771613013574,11.37768772,85.02,84.989,4.5]
[1771613013772,11.37768772,85.01,84.989,4.5]
[1771613013974,11.37768772,85.0,84.98,0.2]
[1771613014187,11.37768772,85.01,84.98,0.2]
[1771613014552,11.37768772,85.0,84.98,0.2]
[1771613015760,11.37768772,84.99,84.97,0.2]
[1771613016066,11.37768772,84.98,84.958,4.5]
[1771613016270,11.37768772,84.97,84.948,4.5]
[1771613016568,11.37768772,84.98,84.948,4.5]
[1771613016771,11.37768772,84.97,84.948,4.5]
[1771613017189,11.37768772,84.97,84.896,5.36086188]
[1771613017190,11.37768772,84.96,84.946,0.19240306]
[1771613017467,11.37768772,84.96,84.896,47.11627697]
[1771613017468,4.18606445,84.959,84.894,41.22788418]
[1771613017669,11.37768772,84.93,84.894,41.22788418]
[1771613017872,11.37768772,84.95,84.9,11.37768772]
[1771613018279,4.18606445,84.95,84.89,11.37768772]
[1771613018589,11.37768772,84.96,84.91,11.37768772]
[1771613019078,4.18606445,84.969,84.921,4.1854861]
[1771613019256,11.37768772,84.96,84.921,4.1854861]
[1771613019656,11.37768772,84.97,84.93,11.37768772]
[1771613019876,11.76775165,84.978,84.931,4.1854861]
[1771613020067,11.37768772,84.98,84.933,4.1854861]
[1771613020463,11.37768772,84.98,84.941,4.1854861]
[1771613021179,11.37768772,84.97,84.941,4.1854861]
[1771613021562,41.18231837,84.988,84.92,4.1854861]
[1771613021563,11.37768772,84.95,84.92,4.1854861]
[1771613022567,11.37768772,84.95,84.921,4.1854861]
[1771613022789,11.37768772,84.96,84.921,4.1854861]
[1771613022978,47.0438361,85.028,84.921,4.1854861]
[1771613022979,11.37768772,84.97,84.921,4.1854861]
[1771613023166,11.37768772,84.96,84.921,4.1854861]
[1771613023962,11.37768772,84.98,84.933,4.1854861]
[1771613024284,11.37768772,84.99,84.951,4.1854861]
[1771613026566,11.37768772,84.99,84.94,11.37768772]
[1771613026567,11.37768772,84.98,84.952,15.95683933]
[1771613026954,11.37768772,84.99,84.952,15.95683933]
[1771613027158,4.18606445,84.993,84.953,4.1854861]
[1771613027364,11.37768772,84.99,84.953,4.1854861]
[1771613028380,11.37768772,85.01,84.971,4.1854861]
[1771613028562,11.37768772,85.01,84.973,4.1854861]
[1771613028759,29.40269775,85.027,84.973,4.1854861]
[1771613028760,11.37768772,85.02,84.973,4.1854861]
[1771613029078,11.37768772,85.0,84.962,4.1854861]
[1771613029383,11.37768772,84.99,84.962,15.95545385]
[1771613030182,11.37768772,85.0,84.963,4.1854861]
[1771613030386,11.37768772,85.01,84.963,4.1854861]
[1771613030584,11.37768772,85.01,84.971,4.1854861]
[1771613031089,11.37768772,85.02,84.981,4.1854861]
[1771613031377,4.18606445,85.009,84.965,4.1854861]
[1771613031976,11.37768772,85.01,84.965,4.1854861]
[1771613032277,4.18606445,85.019,84.971,4.1854861]
[1771613032578,11.37768772,85.02,84.973,4.1854861]
[1771613032961,11.37768772,85.01,84.973,4.1854861]
[1771613033363,11.76207671,85.019,84.973,4.1854861]
[1771613033882,11.37768772,85.01,84.973,4.1854861]
[1771613034078,4.18606445,85.012,84.973,4.1854861]
[1771613034271,11.37768772,85.01,84.973,4.1854861]
[1771613034664,11.37768772,85.01,84.975,4.1854861]
[1771613035158,11.37768772,85.02,84.981,4.1854861]
[1771613035373,11.37768772,85.01,84.981,4.1854861]
[1771613036182,11.37768772,85.02,84.981,4.1854861]
[1771613036679,11.37768772,85.03,84.99,11.37768772]
[1771613036864,11.37768772,85.03,84.991,4.1854861]
[1771613038869,11.37768772,85.03,84.993,4.1854861]
[1771613040487,11.37768772,85.03,84.995,4.1854861]
[1771613041778,4.18606445,85.028,84.995,4.1854861]
[1771613042080,11.37768772,85.02,84.995,4.1854861]
[1771613042280,4.18606445,85.028,84.997,4.1854861]
[1771613042464,11.37768772,85.03,84.997,4.1854861]
[1771613042868,11.57768772,85.04,84.997,4.1854861]
[1771613043075,11.57768772,85.04,85.001,4.1854861]
[1771613043475,0.2,85.04,85.011,4.1854861]
[1771613043881,11.37768772,85.06,85.021,4.1854861]
[1771613044285,11.37768772,85.06,85.023,4.1854861]
[1771613044504,4.18606445,85.049,85.022,11.76166168]
[1771613044975,11.37768772,85.05,85.022,15.94714778]
[1771613045175,11.37768772,85.05,85.023,4.1854861]
[1771613045370,4.18606445,85.049,84.992,4.1854861]
[1771613045570,11.37768772,85.04,84.994,4.1854861]
[1771613045796,11.37768772,85.05,85.011,4.1854861]
[1771613045972,11.37768772,85.05,85.01,11.37768772]
[1771613045973,11.37768772,85.06,85.021,4.1854861]
[1771613046280,11.37768772,85.05,85.022,41.16581589]
[1771613046601,11.37768772,85.06,85.023,4.44587512]
[1771613046779,11.37768772,85.05,85.023,4.44587512]
[1771613047980,11.39486681,85.05,85.023,4.44587512]
[1771613048395,11.39486681,85.05,85.025,4.08821871]
[1771613048598,11.39486681,85.07,85.025,4.08821871]
[1771613048899,11.39486681,85.07,85.027,4.08821871]
[1771613049082,11.39486681,85.08,85.031,4.08821871]
[1771613049285,23.14851043,85.08,85.031,4.08821871]
[1771613049484,11.39486681,85.07,85.031,4.08821871]
[1771613049684,0.14216157,85.098,85.024,41.16484757]
[1771613049685,11.39486681,85.09,85.041,4.08821871]
[1771613050380,11.7524174,85.089,85.042,41.15613461]
[1771613050579,11.7524174,85.089,85.043,4.08821871]
[1771613051591,11.39486681,85.08,85.045,4.08821871]
[1771613051984,11.39486681,85.07,85.045,4.08821871]
[1771613052383,4.19801949,85.079,85.045,4.08821871]
[1771613053799,4.19801949,85.088,85.051,4.08821871]
[1771613054187,11.39486681,85.09,85.051,4.08821871]
[1771613054386,11.39486681,85.1,85.06,11.39486681]
[1771613054582,11.39486681,85.1,85.061,4.08821871]
[1771613054786,11.39486681,85.09,85.061,4.08821871]
[1771613055088,11.39486681,85.1,85.061,4.08821871]
[1771613055890,11.39486681,85.11,85.071,4.08821871]
[1771613056097,11.39486681,85.12,85.071,4.08821871]
[1771613056399,11.39486681,85.14,85.101,4.08821871]
[1771613056581,11.39486681,85.13,85.101,4.08821871]
[1771613057401,11.39486681,85.14,85.101,4.08821871]
[1771613057902,11.39486681,85.12,85.091,15.84023366]
[1771613058400,11.39486681,85.12,85.091,11.75201495]
[1771613058604,11.39486681,85.12,85.092,4.08821871]
[1771613058810,11.39486681,85.11,85.082,4.08821871]
[1771613059405,41.11407392,85.129,85.065,11.75571621]
[1771613059406,11.39486681,85.09,85.065,11.75571621]
[1771613059784,11.75240042,85.089,85.061,11.75622276]
[1771613059988,11.39486681,85.08,85.057,4.08821871]
[1771613060306,11.39486681,85.08,85.047,4.08821871]
[1771613060488,11.39486681,85.07,85.047,4.08821871]
[1771613060880,4.19801949,85.083,85.047,4.08821871]
[1771613060881,11.39486681,85.08,85.047,4.08821871]
[1771613061694,11.75240042,85.089,85.051,4.08821871]
[1771613062282,11.75240042,85.089,85.053,4.08821871]
[1771613062492,57.82404846,85.34,85.052,41.15129567]
[1771613062493,4.19801949,85.105,85.061,4.08821871]
[1771613062688,11.75006414,85.106,85.061,4.08821871]
[1771613062894,11.39486681,85.1,85.061,4.08821871]
[1771613063084,11.39486681,85.09,85.061,4.08821871]
[1771613064494,11.75240042,85.089,85.061,4.08821871]
[1771613064691,11.39486681,85.08,85.054,11.75722029]
[1771613064890,11.75240042,85.089,85.031,4.08821871]
[1771613064891,11.39486681,85.07,85.031,4.08821871]
[1771613065100,11.39486681,85.08,85.041,4.08821871]
[1771613066304,4.19801949,85.088,85.041,4.08821871]
[1771613066305,11.39486681,85.07,85.041,4.08821871]
[1771613067503,11.75516345,85.069,85.042,11.7588956]
[1771613068114,11.75516345,85.069,85.042,15.84711431]
[1771613069113,11.39486681,85.07,85.042,15.84711431]
[1771613069621,11.39486681,85.07,85.043,4.08821871]
[1771613069796,11.75410966,85.077,85.043,4.08821871]
[1771613070798,11.39486681,85.09,85.051,4.08821871]
[1771613071310,11.39486681,85.08,85.051,4.08821871]
[1771613071907,11.75378177,85.079,85.052,11.75751305]
[1771613072106,11.75263017,85.088,85.053,4.08821871]
[1771613072696,11.39486681,85.1,85.061,4.08821871]
[1771613072917,11.7510194,85.099,85.061,4.08821871]
[1771613073119,11.39486681,85.1,85.061,4.08821871]